bitfinex-derivatives/quotes_BTCF0:USTF0_20251030
["timestamp","ask_amount","ask_price","bid_price","bid_amount"]
[1761857554344,0.45967792,107560.0,107550.0,0.04468]
[1761857554345,0.05679,107560.0,107550.0,0.04468]
[1761857554543,0.09047766,107560.0,107550.0,0.04468]
[1761857554939,0.09985529,107560.0,107550.0,0.40548]
[1761857555140,0.08985529,107560.0,107550.0,0.04468]
[1761857555343,0.08985529,107560.0,107550.0,0.40548]
[1761857555648,0.09285529,107560.0,107550.0,0.40548]
[1761857556250,0.07975529,107560.0,107550.0,0.74051]
[1761857557246,0.03482763,107560.0,107550.0,0.9352046]
[1761857557652,0.03482763,107560.0,107550.0,0.74051]
[1761857558456,0.01237763,107560.0,107550.0,0.74051]
[1761857558752,0.51567858,107580.0,107570.0,0.05735]
[1761857558945,0.56877858,107580.0,107570.0,0.04468]
[1761857559351,0.59242541,107580.0,107570.0,0.04468]
[1761857559759,0.23162541,107580.0,107570.0,0.04468]
[1761857559940,0.23362541,107580.0,107570.0,0.04468]
[1761857560254,0.20287566,107580.0,107570.0,0.40548]
[1761857560556,0.20287566,107580.0,107570.0,0.04468]
[1761857560750,0.39757026,107580.0,107570.0,0.04468]
[1761857560954,0.0576,107570.0,107560.0,0.4071]
[1761857563460,0.53917883,107580.0,107570.0,0.0463]
[1761857563649,0.56280164,107580.0,107570.0,0.0463]
[1761857564852,0.0576,107570.0,107560.0,0.4071]
[1761857565146,0.08122281,107570.0,107560.0,0.4071]
[1761857566453,0.06846281,107570.0,107560.0,0.41977]
[1761857566950,0.08122281,107570.0,107560.0,0.41977]
[1761857567653,0.02362281,107570.0,107560.0,0.41977]
[1761857567852,0.17837883,107580.0,107570.0,0.0463]
[1761857568055,0.20201313,107580.0,107570.0,0.0463]
[1761857569252,0.20301313,107580.0,107570.0,0.0463]
[1761857569954,0.04484,107570.0,107560.0,0.4071]
[1761857570154,0.0812343,107570.0,107560.0,0.4071]
[1761857571553,0.0684743,107570.0,107560.0,0.4071]
[1761857571758,0.0684743,107570.0,107560.0,0.41977]
[1761857572562,0.0812343,107570.0,107560.0,0.41977]
[1761857572958,0.0812343,107570.0,107560.0,0.4071]
[1761857573456,0.0684743,107570.0,107560.0,0.41977]
[1761857575457,0.0236343,107570.0,107560.0,0.41977]
[1761857575658,0.19027321,107580.0,107570.0,0.05565]
[1761857575859,0.1439778,107580.0,107570.0,0.98196671]
[1761857576056,0.13472755,107580.0,107570.0,1.07495551]
[1761857576256,0.02499438,107600.0,107590.0,0.0567]
[1761857576465,0.02499438,107600.0,107590.0,0.7397]
[1761857576667,0.05761,107600.0,107590.0,0.7397]
[1761857576972,0.03451,107600.0,107590.0,0.7397]
[1761857577161,0.00951562,107600.0,107590.0,0.7397]
[1761857577367,0.06983438,107610.0,107600.0,0.0463]
[1761857577560,0.06983438,107610.0,107600.0,0.05897]
[1761857577762,0.06983438,107610.0,107600.0,0.41977]
[1761857578158,0.02499438,107610.0,107600.0,0.41977]
[1761857578364,0.08259438,107610.0,107600.0,0.41977]
[1761857578666,0.08759438,107610.0,107600.0,0.41977]
[1761857578872,0.07483438,107610.0,107600.0,0.41977]
[1761857579059,0.07274875,107650.0,107610.0,0.4565543]
[1761857579265,0.01276,107650.0,107640.0,0.96491671]
[1761857579563,0.01276,107650.0,107640.0,1.04504]
[1761857579564,0.0576,107650.0,107640.0,1.04504]
[1761857580367,0.01276,107660.0,107640.0,2.13447342]
[1761857580556,0.0576,107660.0,107650.0,0.3608]
[1761857580759,0.0576,107660.0,107650.0,0.68452]
[1761857581163,0.0576,107660.0,107650.0,0.3608]
[1761857581374,0.0576,107660.0,107650.0,0.68452]
[1761857581570,0.42354876,107720.0,107680.0,0.0928896]
[1761857581767,0.19994594,107710.0,107700.0,0.60411671]
[1761857581972,0.04484,107710.0,107700.0,0.96491671]
[1761857582264,0.05413,107710.0,107700.0,0.7216]
[1761857582466,0.37897,107710.0,107700.0,0.7216]
[1761857582667,0.35587,107710.0,107690.0,0.3608]
[1761857582873,0.06689,107700.0,107690.0,0.3608]
[1761857583167,0.04484,107690.0,107680.0,0.3608]
[1761857583375,0.37917,107690.0,107680.0,0.3608]
[1761857583970,0.3608,107700.0,107680.0,0.3636]
[1761857584163,0.01276,107700.0,107690.0,1.02267651]
[1761857584369,0.01276,107700.0,107690.0,0.92979671]
[1761857584671,0.01276,107700.0,107690.0,0.4536853]
[1761857584870,0.01276,107700.0,107690.0,0.69800201]
[1761857585063,0.01276,107700.0,107690.0,0.60511671]
[1761857585367,0.01276,107700.0,107690.0,0.60611671]
[1761857585758,0.01276,107700.0,107690.0,0.60411671]
[1761857585962,0.01276,107700.0,107690.0,0.61311671]
[1761857586468,0.01276,107700.0,107690.0,0.4626849]
[1761857586765,0.01276,107700.0,107690.0,0.70600161]
[1761857586976,0.01276,107700.0,107690.0,0.61311671]
[1761857587475,0.01276,107700.0,107690.0,0.3698]
[1761857587772,0.01276,107700.0,107690.0,0.61311671]
[1761857588471,0.01276,107700.0,107690.0,0.70200221]
[1761857588659,0.01276,107700.0,107690.0,0.70600221]
[1761857588862,0.01276,107700.0,107690.0,0.70100221]
[1761857589072,0.01276,107700.0,107690.0,0.70500221]
[1761857589273,0.01276,107700.0,107690.0,0.70300221]
[1761857589475,0.01276,107700.0,107690.0,1.30300221]
[1761857589871,0.01276,107700.0,107690.0,1.21011671]
[1761857590776,0.06724,107700.0,107690.0,0.61011671]
[1761857591563,0.02205,107700.0,107690.0,0.61011671]
[1761857591767,0.06636,107700.0,107690.0,0.61011671]
[1761857591970,0.06636,107700.0,107690.0,0.60811671]
[1761857592169,0.06636,107700.0,107690.0,0.60711671]
[1761857592564,0.06636,107700.0,107690.0,0.3638]
[1761857594174,0.06636,107700.0,107690.0,0.60511671]
[1761857594477,0.06636,107700.0,107690.0,0.3618]
[1761857597064,0.39144,107700.0,107690.0,0.3618]
[1761857597269,0.06636,107700.0,107690.0,0.3618]
[1761857597673,0.3914,107700.0,107690.0,0.3618]
[1761857598476,0.3914,107700.0,107690.0,0.60511671]
[1761857598861,0.06636,107700.0,107690.0,0.60511671]
[1761857599066,0.39132,107700.0,107690.0,0.60511671]
[1761857600278,0.39132,107700.0,107690.0,0.3618]
[1761857600978,0.06636,107700.0,107690.0,0.3618]
[1761857601179,0.3912,107700.0,107690.0,0.3618]
[1761857601674,0.394,107700.0,107690.0,0.3618]
[1761857601878,0.3912,107700.0,107690.0,0.3618]
[1761857602274,0.05715,107690.0,107680.0,0.3608]
[1761857602475,0.06644,107690.0,107680.0,0.3608]
[1761857602671,0.66644,107690.0,107680.0,0.3608]
[1761857603480,0.66644,107690.0,107680.0,0.3618]
[1761857603781,0.66644,107690.0,107680.0,0.3638]
[1761857604171,0.66644,107690.0,107680.0,0.3618]
[1761857604371,0.66644,107690.0,107680.0,0.3608]
[1761857604767,0.66644,107690.0,107670.0,0.3608]
[1761857604768,0.04417,107680.0,107670.0,0.3608]
[1761857605070,0.37818,107680.0,107670.0,0.3608]
[1761857605473,0.37818,107680.0,107670.0,0.60411671]
[1761857605877,0.06644,107680.0,107670.0,0.60411671]
[1761857606082,0.39112,107680.0,107670.0,0.60511671]
[1761857606582,0.06644,107680.0,107670.0,0.69802001]
[1761857606774,0.01298,107680.0,107670.0,1.02550001]
[1761857606974,0.05715,107680.0,107670.0,1.52979671]
[1761857607174,0.05715,107680.0,107670.0,0.92979671]
[1761857607374,0.05715,107680.0,107670.0,0.60511671]
[1761857608179,0.05715,107680.0,107670.0,0.3618]
[1761857608377,0.06644,107680.0,107670.0,0.60511671]
[1761857608582,0.08926518,107680.0,107670.0,0.3618]
[1761857608780,0.06644,107680.0,107670.0,0.3618]
[1761857609081,0.0892654,107680.0,107670.0,0.3618]
[1761857609470,0.0892654,107680.0,107670.0,0.60511671]
[1761857610087,0.0892654,107680.0,107670.0,0.3618]
[1761857610674,0.04417,107660.0,107650.0,0.3608]
[1761857610879,0.0762854,107660.0,107650.0,0.3608]
[1761857612174,0.0762854,107660.0,107650.0,0.3618]
[1761857613188,0.0762854,107660.0,107650.0,0.3628]
[1761857613586,0.08717764,107660.0,107650.0,0.3628]
[1761857613885,0.08717764,107660.0,107650.0,0.3618]
[1761857614778,0.41181764,107660.0,107650.0,0.3618]
[1761857615585,0.41181764,107660.0,107640.0,0.3608]
[1761857615586,1.01593435,107660.0,107640.0,0.3608]
[1761857615784,0.06644,107650.0,107640.0,0.3608]
[1761857615979,0.0892654,107650.0,107640.0,0.3608]
[1761857616389,0.4138654,107650.0,107640.0,0.3608]
[1761857616692,0.4138654,107650.0,107640.0,0.3618]
[1761857616891,0.4139454,107650.0,107640.0,0.3638]
[1761857620190,0.51388934,107650.0,107640.0,0.3638]
[1761857620490,0.4139454,107650.0,107640.0,0.3638]
[1761857622689,0.0892654,107650.0,107640.0,0.3638]
[1761857622889,0.4137454,107650.0,107640.0,0.3638]
[1761857623099,0.0892654,107650.0,107640.0,0.3638]
[1761857623285,0.4137454,107650.0,107640.0,0.3638]
[1761857623485,1.0137454,107650.0,107640.0,0.3638]
[1761857626085,0.0892654,107650.0,107640.0,0.3638]
[1761857626288,0.4043354,107650.0,107640.0,0.60711671]
[1761857626488,0.0892654,107650.0,107640.0,0.3638]
[1761857626990,1.0136254,107650.0,107640.0,0.3638]
[1761857627188,0.65974211,107650.0,107640.0,0.3638]
[1761857627388,0.4164254,107650.0,107640.0,0.3638]
[1761857627588,0.4164654,107650.0,107640.0,0.3638]
[1761857627790,0.4136654,107650.0,107640.0,0.3638]
[1761857627986,0.51360934,107650.0,107640.0,0.3638]
[1761857628983,1.88452495,107650.0,107640.0,0.003]
[1761857629188,1.88452495,107650.0,107600.0,6.616e-05]
[1761857629189,0.05762,107610.0,107600.0,6.616e-05]
[1761857629483,0.77503116,107610.0,107600.0,6.616e-05]
[1761857629684,0.76574116,107610.0,107600.0,6.616e-05]
[1761857630485,0.76574116,107610.0,107600.0,0.00206616]
[1761857631691,0.76674116,107610.0,107600.0,0.00206616]
[1761857631893,0.44226116,107610.0,107600.0,6.616e-05]
[1761857632092,0.76670116,107610.0,107600.0,6.616e-05]
[1761857632293,0.08146116,107610.0,107600.0,6.616e-05]
[1761857632490,0.40594116,107610.0,107600.0,6.616e-05]
[1761857632890,0.44226116,107610.0,107600.0,6.616e-05]
[1761857633087,0.76666116,107610.0,107600.0,6.616e-05]
[1761857633589,0.8758951,107610.0,107600.0,6.616e-05]
[1761857634385,0.77595116,107610.0,107600.0,6.616e-05]
[1761857635584,0.09075116,107610.0,107600.0,6.616e-05]
[1761857635785,0.05862,107610.0,107600.0,6.616e-05]
[1761857636100,0.38302,107610.0,107600.0,6.616e-05]
[1761857636500,0.38302,107610.0,107600.0,0.36086616]
[1761857636700,0.38298,107610.0,107600.0,0.36086616]
[1761857637597,0.05862,107610.0,107600.0,0.36086616]
[1761857638796,0.74374,107610.0,107600.0,6.616e-05]
[1761857638992,0.87586718,107610.0,107600.0,6.616e-05]
[1761857639495,0.90081922,107610.0,107600.0,6.616e-05]
[1761857639698,0.05762,107590.0,107580.0,0.3608]
[1761857639886,0.39220297,107590.0,107570.0,0.3608]
[1761857640094,0.05762,107580.0,107570.0,0.3608]
[1761857640700,0.05768849,107580.0,107570.0,0.3608]
[1761857641097,0.05768849,107580.0,107570.0,0.3618]
[1761857641896,0.06697849,107580.0,107570.0,0.3618]
[1761857642100,0.16692243,107580.0,107570.0,0.001]
[1761857642302,0.18983477,107580.0,107570.0,0.001]
[1761857642494,0.55063477,107580.0,107570.0,0.002]
[1761857642696,0.62529548,107580.0,107570.0,0.001]
[1761857642895,0.62529548,107580.0,107570.0,0.002]
[1761857644198,0.52535154,107580.0,107570.0,0.002]
[1761857645694,0.05762,107560.0,107550.0,0.3608]
[1761857645898,0.05762,107550.0,107540.0,1.8608]
[1761857646097,0.05762,107550.0,107540.0,2.185]
[1761857646800,0.05762,107550.0,107540.0,1.5]
[1761857646998,0.05762,107540.0,107530.0,0.3608]
[1761857647193,0.05768849,107540.0,107530.0,0.68524]
[1761857647805,0.05768849,107540.0,107530.0,0.6852]
[1761857647998,0.05668849,107540.0,107530.0,0.6852]
[1761857648595,0.05668849,107540.0,107530.0,0.6862]
[1761857650094,0.05768849,107540.0,107530.0,0.6862]
[1761857651106,0.06697849,107540.0,107530.0,0.6862]
[1761857653006,0.06697849,107540.0,107530.0,2.1862]
[1761857654495,0.06697849,107540.0,107530.0,1.8618]
[1761857654699,0.06697849,107540.0,107530.0,2.186]
[1761857655300,0.06697849,107540.0,107530.0,1.8618]
[1761857655505,0.06697849,107540.0,107530.0,2.186]
[1761857656909,0.06697849,107540.0,107530.0,1.8618]
[1761857657297,0.06697849,107540.0,107530.0,2.18592]
[1761857658101,0.14232905,107540.0,107530.0,2.18592]
[1761857659097,0.14232905,107540.0,107530.0,1.8618]
[1761857659300,0.14232905,107540.0,107530.0,2.18596]
[1761857660912,0.16520764,107540.0,107530.0,2.18596]
[1761857661413,0.16520764,107540.0,107530.0,2.18588]
[1761857662502,0.16520764,107540.0,107530.0,1.825]
[1761857662706,0.26515158,107540.0,107530.0,1.825]
[1761857662905,0.26515158,107540.0,107530.0,2.1858]
[1761857664111,0.62595158,107540.0,107530.0,1.501]
[1761857664317,0.62595158,107540.0,107530.0,0.32488]
[1761857664714,0.26515158,107540.0,107530.0,0.32488]
[1761857665015,0.16520764,107540.0,107530.0,1.82488]
[1761857665710,0.52600764,107540.0,107530.0,1.501]
[1761857665913,0.16520764,107540.0,107530.0,0.001]
[1761857666116,0.52600764,107540.0,107530.0,0.3248]
[1761857666416,0.55095968,107540.0,107530.0,0.001]
[1761857667416,1.05821923,107540.0,107530.0,0.001]
[1761857667813,1.05815074,107540.0,107530.0,0.001]
[1761857668013,1.05821923,107540.0,107530.0,0.001]
[1761857668219,1.05815074,107540.0,107530.0,0.001]
[1761857668516,0.65916019,107540.0,107530.0,0.001]
[1761857668714,1.0664758,107540.0,107530.0,0.001]
[1761857670823,1.6692758,107540.0,107530.0,0.001]
[1761857671113,1.66934429,107540.0,107530.0,0.001]
[1761857671315,1.6692758,107540.0,107530.0,0.001]
[1761857671813,1.26196019,107540.0,107530.0,0.001]
[1761857672022,1.6692758,107540.0,107530.0,0.001]
[1761857672215,1.6792758,107540.0,107530.0,0.001]
[1761857675020,1.56653186,107540.0,107530.0,0.001]
[1761857676221,1.15921625,107540.0,107530.0,0.001]
[1761857676719,0.05708,107520.0,107510.0,2.18475539]
[1761857676920,0.08002708,107520.0,107510.0,2.18475539]
[1761857677924,0.08102708,107520.0,107510.0,2.18475539]
[1761857678224,0.08302708,107520.0,107510.0,2.18475539]
[1761857679025,0.08302708,107520.0,107510.0,1.82395539]
[1761857679218,0.08302708,107520.0,107510.0,2.18475539]
[1761857679925,0.09498992,107520.0,107510.0,2.18475539]
[1761857681225,0.09498992,107520.0,107510.0,2.18443539]
[1761857681826,0.09498992,107520.0,107510.0,1.82363539]
[1761857682328,0.09498992,107520.0,107510.0,2.18443539]
[1761857684817,0.09498992,107520.0,107510.0,1.82363539]
[1761857685322,0.09498992,107520.0,107510.0,2.18443539]
[1761857686318,0.09498992,107520.0,107510.0,1.82363539]
[1761857686926,0.09498992,107520.0,107510.0,2.18443539]
[1761857688630,0.10427992,107520.0,107510.0,2.18443539]
[1761857689923,0.10427992,107520.0,107510.0,1.82363539]
[1761857690324,0.10427992,107520.0,107510.0,2.18443539]
[1761857691837,0.10459371,107520.0,107510.0,2.18443539]
[1761857693234,0.10459371,107520.0,107510.0,1.82363539]
[1761857693535,0.29942008,107520.0,107510.0,1.82363539]
[1761857693739,0.29942008,107520.0,107510.0,2.18443539]
[1761857695041,0.29942008,107520.0,107510.0,1.50011539]
[1761857695340,0.66022008,107520.0,107510.0,1.82315539]
[1761857695726,0.29942008,107520.0,107510.0,1.82315539]
[1761857697742,0.29942008,107520.0,107510.0,2.18395539]
[1761857697931,0.29942008,107520.0,107510.0,1.82315539]
[1761857698328,0.29942008,107520.0,107510.0,0.32315539]
[1761857698941,0.66022008,107520.0,107510.0,0.32315539]
[1761857699142,0.85504645,107520.0,107510.0,0.00011539]
[1761857699341,0.88013871,107520.0,107510.0,0.00011539]
[1761857700235,0.8708722,107520.0,107510.0,0.00011539]
[1761857700545,0.8801622,107520.0,107510.0,0.00011539]
[1761857701148,1.4801622,107520.0,107510.0,0.00011539]
[1761857701337,1.47809371,107520.0,107510.0,0.00011539]
[1761857701643,1.4821622,107520.0,107510.0,0.00011539]
[1761857701835,1.48209371,107520.0,107510.0,0.00011539]
[1761857702237,1.58203765,107520.0,107510.0,0.00011539]
[1761857702543,0.98203765,107520.0,107510.0,0.00011539]
[1761857702940,0.88209371,107520.0,107510.0,0.00011539]
[1761857704655,0.46732234,107520.0,107510.0,0.19494176]
[1761857704840,0.46739083,107520.0,107510.0,0.19494176]
[1761857705041,0.6622172,107520.0,107510.0,0.19494176]
[1761857705240,0.6622172,107520.0,107510.0,0.00011539]
[1761857706839,0.6622172,107520.0,107510.0,0.32331539]
[1761857708147,0.3014172,107520.0,107510.0,0.51814176]
[1761857708447,0.09730083,107520.0,107510.0,0.87894176]
[1761857708646,0.07411133,107520.0,107510.0,0.87894176]
[1761857709053,0.09727557,107520.0,107510.0,0.87894176]
[1761857709552,0.02499133,107520.0,107510.0,1.07856813]
[1761857709858,0.04778133,107520.0,107510.0,1.48374176]
[1761857710044,0.06933133,107520.0,107510.0,1.48094176]
[1761857710551,0.06933133,107520.0,107510.0,0.55774176]
[1761857710851,0.28731942,107520.0,107510.0,0.88086176]
[1761857711052,0.28831942,107520.0,107510.0,0.87886176]
[1761857711349,0.28831942,107520.0,107510.0,0.87882176]
[1761857711547,0.28831942,107520.0,107510.0,0.36091539]
[1761857711744,0.28731942,107520.0,107510.0,0.68499539]
[1761857712055,0.28731942,107520.0,107510.0,0.68599539]
[1761857712240,0.28731942,107520.0,107510.0,0.36291539]
[1761857712445,0.28731942,107520.0,107510.0,0.32515539]
[1761857713753,0.28731942,107520.0,107510.0,0.68595539]
[1761857713945,0.28731942,107520.0,107510.0,0.68495539]
[1761857714146,0.28831942,107520.0,107510.0,0.68395539]
[1761857715250,0.28831942,107520.0,107510.0,0.32315539]
[1761857715652,0.29760942,107520.0,107510.0,0.32315539]
[1761857715958,0.10278305,107520.0,107510.0,0.32315539]
[1761857716253,0.29760942,107520.0,107510.0,0.68395539]
[1761857716954,0.10278305,107520.0,107510.0,0.36091539]
[1761857717150,0.10278305,107520.0,107510.0,0.87874176]
[1761857719846,0.10278305,107520.0,107510.0,0.51794176]
[1761857720046,0.10278305,107520.0,107510.0,0.87874176]
[1761857720244,0.09349305,107520.0,107510.0,0.87874176]
[1761857720444,0.10278305,107520.0,107510.0,0.87874176]
[1761857721748,0.29760942,107520.0,107510.0,0.87874176]
[1761857721947,0.10278305,107520.0,107510.0,0.87874176]
[1761857722143,0.29760942,107520.0,107510.0,0.87874176]
[1761857723056,0.10278305,107520.0,107510.0,0.87874176]
[1761857723258,0.29760942,107520.0,107510.0,0.87874176]
[1761857723555,0.10278305,107520.0,107510.0,0.87874176]
[1761857723951,0.29760942,107520.0,107510.0,0.87874176]
[1761857724151,0.29760942,107520.0,107510.0,0.55574176]
[1761857724351,0.29760942,107520.0,107510.0,0.87874176]
[1761857727460,0.10278305,107520.0,107510.0,0.87874176]
[1761857727762,0.29760942,107520.0,107510.0,0.87874176]
[1761857729248,0.10278305,107520.0,107510.0,0.87874176]
[1761857729657,0.01402849,107520.0,107510.0,1.16940913]
[1761857730560,0.01302849,107520.0,107510.0,1.16940913]
[1761857730763,0.01302849,107520.0,107510.0,1.16860913]
[1761857731055,0.01302849,107520.0,107510.0,1.17140913]
[1761857731253,0.01302849,107520.0,107510.0,1.23712229]
[1761857731452,0.01302849,107520.0,107510.0,1.17140913]
[1761857731856,0.01296,107530.0,107510.0,1.17140913]
[1761857732061,0.01296,107530.0,107520.0,0.84628504]
[1761857733361,0.01296,107530.0,107520.0,0.84728504]
[1761857733759,0.05598,107530.0,107520.0,0.3618]
[1761857734054,0.05598,107530.0,107520.0,0.75145274]
[1761857734055,0.06747475,107530.0,107520.0,0.75145274]
[1761857734246,0.01296,107530.0,107520.0,0.84548504]
[1761857734452,0.01296,107530.0,107520.0,0.84828504]
[1761857734763,0.01296,107530.0,107520.0,0.84548504]
[1761857735259,0.01296,107530.0,107520.0,0.84828504]
[1761857735456,0.03456,107530.0,107520.0,0.84828504]
[1761857735663,0.01296,107530.0,107520.0,0.84828504]
[1761857737556,0.01297,107540.0,107530.0,0.0930236]
[1761857737862,0.01297,107540.0,107530.0,1.16643634]
[1761857738051,0.01297,107540.0,107530.0,0.97160997]
[1761857738764,0.01297,107540.0,107530.0,1.16643634]
[1761857739060,0.01297,107540.0,107530.0,1.16923634]
[1761857740055,0.01397,107540.0,107530.0,1.16923634]
[1761857741162,0.01397,107540.0,107530.0,1.16643634]
[1761857741358,0.03557,107540.0,107530.0,1.16643634]
[1761857741563,0.05687,107540.0,107530.0,0.7767836]
[1761857741755,0.05687,107540.0,107530.0,0.97160997]
[1761857748169,0.06616,107540.0,107530.0,0.97160997]
[1761857748468,0.45581274,107540.0,107530.0,0.3608]
[1761857748657,0.26098637,107540.0,107530.0,0.68372]
[1761857749461,0.06616,107540.0,107530.0,0.68372]
[1761857753166,0.06616,107540.0,107530.0,0.3608]
[1761857753374,0.06616,107540.0,107530.0,0.68368]
[1761857753775,0.66616,107540.0,107530.0,0.68368]
[1761857754266,0.68947456,107540.0,107530.0,0.68368]
[1761857754466,0.68947456,107540.0,107530.0,0.87843718]
[1761857754674,0.08947456,107540.0,107530.0,0.87843718]
[1761857755171,0.02326,107540.0,107530.0,0.87843718]
[1761857755377,0.01397,107540.0,107530.0,0.97426098]
[1761857756362,0.01397,107540.0,107530.0,0.88123718]
[1761857756567,0.01397,107540.0,107530.0,0.97146098]
[1761857756773,0.01397,107540.0,107530.0,0.7795038]
[1761857756976,0.01397,107540.0,107530.0,0.97146098]
[1761857757173,0.03554,107540.0,107530.0,0.87843718]
[1761857757379,0.05684,107540.0,107530.0,0.87843718]
[1761857758174,0.08946318,107540.0,107530.0,0.68368]
[1761857758572,0.08846318,107540.0,107530.0,0.68568]
[1761857759977,0.06513,107540.0,107530.0,0.68568]
[1761857760871,0.088475,107540.0,107530.0,0.68568]
[1761857762180,0.06513,107540.0,107530.0,0.68568]
[1761857762878,0.0884785,107540.0,107530.0,0.68568]
[1761857763075,0.06513,107540.0,107530.0,0.68568]
[1761857763280,0.06513,107540.0,107530.0,0.88043718]
[1761857764778,0.06513,107540.0,107530.0,0.68568]
[1761857764976,0.06513,107540.0,107530.0,0.88043718]
[1761857765476,0.06718114,107540.0,107530.0,0.88043718]
[1761857765680,0.08848114,107540.0,107530.0,0.88043718]
[1761857770982,0.06513,107540.0,107530.0,0.88043718]
[1761857771670,0.01297,107540.0,107530.0,0.97346128]
[1761857771875,0.01297,107550.0,107530.0,0.97625498]
[1761857772074,0.01297,107550.0,107540.0,0.55555718]
[1761857772283,0.03581,107550.0,107540.0,0.55555718]
[1761857773386,0.03581,107550.0,107540.0,0.64857258]
[1761857774583,0.03681,107550.0,107540.0,0.64857258]
[1761857774975,0.01397,107550.0,107540.0,0.65137258]
[1761857775186,0.01297,107550.0,107540.0,0.65137258]
[1761857775383,0.01297,107550.0,107540.0,0.65337258]
[1761857775892,0.01297,107550.0,107540.0,0.66459337]
[1761857776089,0.01297,107550.0,107540.0,0.65337258]
[1761857776693,0.01297,107550.0,107540.0,0.65537258]
[1761857777485,0.0129,107560.0,107550.0,0.093007]
[1761857777687,0.0453,107560.0,107550.0,1.16892136]
[1761857777892,0.0453,107560.0,107550.0,1.16612136]
[1761857778082,0.02219,107560.0,107550.0,1.16612136]
[1761857778279,0.06632,107560.0,107550.0,0.87835718]
[1761857778484,0.06632,107560.0,107550.0,0.87935718]
[1761857778683,0.06632,107560.0,107550.0,0.97236408]
[1761857779593,0.02219,107560.0,107550.0,0.97236408]
[1761857779891,0.0129,107560.0,107550.0,1.16992126]
[1761857780083,0.0129,107570.0,107560.0,0.0929982]
[1761857780292,0.0129,107570.0,107560.0,0.65135538]
[1761857780495,0.01392,107580.0,107570.0,0.0929895]
[1761857780686,0.01392,107580.0,107570.0,0.97410668]
[1761857780882,0.01392,107580.0,107570.0,1.16886386]
[1761857781083,0.01392,107580.0,107570.0,0.7793495]
[1761857781288,0.01392,107580.0,107570.0,0.55555718]
[1761857781289,0.03703,107580.0,107570.0,0.55555718]
[1761857781594,0.03703,107580.0,107570.0,0.97130678]
[1761857781789,0.03803,107580.0,107570.0,0.97130678]
[1761857781995,0.04103,107580.0,107570.0,0.97130678]
[1761857782998,0.04103,107580.0,107570.0,0.64854678]
[1761857783195,0.04003,107580.0,107570.0,0.97230678]
[1761857783497,0.03703,107580.0,107570.0,0.97430678]
[1761857783790,0.05805,107580.0,107570.0,0.55855718]
[1761857783997,0.03703,107580.0,107570.0,0.88131718]
[1761857784389,0.05805,107580.0,107570.0,0.88131718]
[1761857784691,0.05805,107580.0,107570.0,0.55855718]
[1761857784896,0.06734,107580.0,107570.0,0.68652]
[1761857785397,0.06734,107580.0,107570.0,0.3638]
[1761857785600,0.06734,107580.0,107570.0,0.68652]
[1761857786198,0.06734,107580.0,107570.0,0.88127718]
[1761857786401,0.04632,107580.0,107570.0,0.88127718]
[1761857786897,0.06734,107580.0,107570.0,0.88127718]
[1761857800297,0.05805,107580.0,107570.0,0.88127718]
[1761857800504,0.06734,107580.0,107570.0,0.88127718]
[1761857800906,0.03703,107580.0,107570.0,0.88127718]
[1761857801108,0.01273,107590.0,107570.0,0.97426128]
[1761857801303,0.06668,107590.0,107580.0,0.75031436]
[1761857801503,0.09005279,107590.0,107580.0,0.75031436]
[1761857801810,0.09005279,107590.0,107580.0,0.55555718]
[1761857802501,0.06668,107590.0,107580.0,0.55555718]
[1761857802710,0.06668,107590.0,107580.0,0.64853838]
[1761857803301,0.06668,107590.0,107580.0,0.55555718]
[1761857804213,0.09007302,107590.0,107580.0,0.87819718]
[1761857805012,0.09007302,107590.0,107580.0,0.55555718]
[1761857805212,0.09007302,107590.0,107580.0,0.87815718]
[1761857805412,0.09007302,107590.0,107580.0,0.6834]
[1761857805706,0.09007302,107590.0,107580.0,0.87815718]
[1761857809111,0.09007302,107590.0,107580.0,0.55555718]
[1761857809808,0.09007302,107590.0,107580.0,0.6834]
[1761857810710,0.09007302,107590.0,107580.0,0.3608]
[1761857811012,0.09007302,107590.0,107580.0,0.6834]
[1761857811421,0.28464585,107590.0,107580.0,0.68336]
[1761857811912,0.28464585,107590.0,107580.0,0.3608]
[1761857812421,0.88744585,107590.0,107580.0,0.67033151]
[1761857812908,0.88464585,107590.0,107580.0,0.67033151]
[1761857813505,0.88564585,107590.0,107580.0,0.67033151]
[1761857813701,0.88664585,107590.0,107580.0,0.67033151]
[1761857813912,0.69207302,107590.0,107580.0,0.67033151]
[1761857814105,0.88664585,107590.0,107580.0,0.67033151]
[1761857815919,0.58116262,107590.0,107580.0,0.34777151]
[1761857816106,0.05737,107570.0,107560.0,0.3608]
[1761857816416,0.28462585,107570.0,107560.0,0.68336]
[1761857817317,0.28562585,107570.0,107560.0,0.68336]
[1761857817615,0.28562585,107570.0,107560.0,0.68536]
[1761857818013,0.28562585,107570.0,107560.0,0.32456]
[1761857818509,0.11613014,107570.0,107560.0,0.32456]
[1761857818718,0.31070297,107570.0,107560.0,0.32456]
[1761857819011,0.91070297,107570.0,107560.0,0.32456]
[1761857819322,0.05737,107560.0,107550.0,0.68336]
[1761857819508,0.28462585,107560.0,107550.0,0.68336]
[1761857819817,0.47919868,107560.0,107550.0,0.3608]
[1761857820418,0.47919868,107560.0,107550.0,0.3618]
[1761857820601,0.47919868,107560.0,107550.0,0.3628]
[1761857820806,0.47919868,107560.0,107550.0,0.002]
[1761857821817,0.47919868,107560.0,107550.0,0.001]
[1761857822213,0.05737,107550.0,107540.0,0.3608]
[1761857822414,0.26123283,107550.0,107540.0,0.6834]
[1761857822807,0.06666,107550.0,107540.0,1.07254566]
[1761857823008,0.06666,107550.0,107540.0,0.87797283]
[1761857823313,0.26123283,107550.0,107540.0,0.87897283]
[1761857823618,0.26123283,107550.0,107540.0,0.6854]
[1761857823808,0.26123283,107550.0,107540.0,0.87997283]
[1761857824009,0.06666,107550.0,107540.0,0.87997283]
[1761857830527,0.26123283,107550.0,107540.0,0.87997283]
[1761857832325,0.26123283,107550.0,107540.0,0.6854]
[1761857832514,0.06666,107550.0,107540.0,0.3628]
[1761857832715,0.26123283,107550.0,107540.0,0.6854]
[1761857833119,0.26123283,107550.0,107540.0,0.3628]
[1761857833423,0.86123283,107550.0,107540.0,0.3246]
[1761857833922,0.86123283,107550.0,107540.0,0.002]
[1761857834125,0.62483283,107550.0,107540.0,0.002]
[1761857834518,0.62483283,107550.0,107540.0,0.001]
[1761857835423,0.62483283,107550.0,107530.0,0.3608]